bitfinex/quotes_ETHUSD_20250602
["timestamp","ask_amount","ask_price","bid_price","bid_amount"]
[1748877607568,0.01228,2537.9,2537.6,8.0]
[1748877607772,0.8003,2537.8,2537.6,8.0]
[1748877608068,7.64967533,2537.7,2537.5,1.119]
[1748877608774,7.60041998,2537.7,2537.5,1.119]
[1748877610485,11.54100434,2537.7,2537.5,1.119]
[1748877610654,4.69913139,2537.6,2537.5,1.119]
[1748877610852,3.94137633,2537.2,2536.8,0.21925132]
[1748877611059,8.35881998,2537.0,2536.8,0.21925132]
[1748877611271,8.35881998,2536.5,2536.0,3.943127]
[1748877611472,8.35881998,2536.5,2535.9,3.94324553]
[1748877611667,8.35881998,2536.5,2535.7,3.94368418]
[1748877611869,0.04928462,2536.4,2535.9,8.0]
[1748877612168,8.35881998,2536.5,2535.7,11.94365794]
[1748877612361,0.04928462,2536.4,2535.8,4.149]
[1748877612679,0.04928462,2536.4,2535.9,3.94328519]
[1748877612866,0.7584,2536.5,2536.2,3.94282689]
[1748877613043,0.7584,2536.5,2535.9,8.0]
[1748877613249,0.8153,2536.8,2536.4,3.94251544]
[1748877613474,0.8153,2536.8,2536.5,1.119]
[1748877613748,9.21303131,2537.1,2536.5,13.06135711]
[1748877613976,0.92130313,2537.0,2536.5,9.119]
[1748877614340,0.92130313,2537.0,2536.5,13.06132403]
[1748877614546,0.92130313,2537.0,2536.5,13.06143324]
[1748877614779,0.92130313,2537.0,2536.5,9.119]
[1748877614979,0.92130313,2537.0,2536.5,13.06135457]
[1748877615142,0.92130313,2537.0,2536.5,9.119]
[1748877615345,0.92130313,2537.0,2536.5,13.06137129]
[1748877615851,0.97057572,2537.0,2536.5,9.119]
[1748877616193,0.778,2537.7,2536.5,9.9242]
[1748877616392,7.97889066,2537.6,2536.9,3.9416895]
[1748877616697,7.97889066,2537.6,2536.9,8.0917907]
[1748877616849,7.97889066,2537.6,2536.9,4.15]
[1748877617052,1.28930011,2537.5,2536.9,4.15]
[1748877617356,7.60041998,2537.3,2536.5,9.9242]
[1748877617562,7.60041998,2537.0,2536.6,4.15]
[1748877617760,7.60041998,2537.0,2536.6,12.15]
[1748877618287,7.60041998,2537.0,2536.6,16.09221394]
[1748877618784,8.36321998,2537.3,2536.7,3.94201485]
[1748877618945,0.04927068,2537.2,2536.6,16.09223223]
[1748877619155,8.36321998,2537.3,2536.6,16.09223223]
[1748877619396,8.36321998,2537.3,2536.7,3.94208979]
[1748877619593,0.04927068,2537.2,2536.6,12.15]
[1748877619795,0.89051975,2537.2,2536.6,16.09221424]
[1748877620158,0.89051975,2537.2,2536.6,12.15]
[1748877620359,0.89051975,2537.2,2536.6,16.09227585]
[1748877620608,0.89051975,2537.2,2536.6,16.09227417]
[1748877621070,0.89051975,2537.2,2536.7,3.94210725]
[1748877621271,0.84124907,2537.2,2536.7,3.94204639]
[1748877621596,0.89051976,2537.2,2536.6,16.09220808]
[1748877622222,0.89051976,2537.2,2536.7,3.94208745]
[1748877622623,0.89051976,2537.2,2536.6,16.09219253]
[1748877622823,0.04927069,2537.2,2536.6,12.15]
[1748877623031,0.7628,2537.3,2536.7,0.7864]
[1748877623187,0.39520674,2537.5,2537.0,3.94156478]
[1748877623521,0.39520674,2537.5,2536.7,0.7864]
[1748877623522,7.60041998,2537.3,2536.8,4.15]
[1748877623731,0.04926679,2537.5,2536.9,3.94168485]
[1748877624021,0.88146061,2537.5,2537.0,3.94153547]
[1748877624324,0.7668,2537.6,2537.4,3.9410329]
[1748877624525,0.7668,2537.6,2537.2,5.05930182]
[1748877624725,0.7668,2537.6,2537.3,3.94107303]
[1748877624892,7.99909107,2537.8,2537.4,3.94091321]
[1748877625093,8.0483497,2537.8,2537.3,3.94113305]
[1748877625436,8.0483497,2537.8,2537.2,13.05928891]
[1748877625437,7.60041998,2537.5,2537.2,8.0]
[1748877625634,7.60041998,2537.5,2537.2,1.118]
[1748877625787,0.8063,2537.4,2537.2,1.118]
[1748877625987,0.85556819,2537.4,2537.2,1.118]
[1748877626184,0.8063,2537.4,2537.2,1.118]
[1748877626488,0.8018,2537.7,2537.2,9.20833808]
[1748877626693,0.8018,2537.7,2537.3,3.94112362]
[1748877626924,0.85106094,2537.7,2537.3,3.94112362]
[1748877627116,0.8018,2537.7,2537.3,3.94118656]
[1748877627424,0.8018,2537.7,2537.3,3.94116146]
[1748877627640,0.8018,2537.7,2537.2,9.20828765]
[1748877627806,0.8018,2537.7,2537.2,9.20832207]
[1748877628004,0.8018,2537.7,2537.2,5.267]
[1748877628005,0.8510584,2537.7,2537.2,5.267]
[1748877628201,1.82589464,2537.7,2537.3,5.267]
[1748877628430,1.82589464,2537.7,2537.4,5.267]
[1748877628733,1.82589774,2537.7,2537.4,5.267]
[1748877628890,1.82589774,2537.7,2537.4,9.20797382]
[1748877628891,0.97483624,2537.7,2537.4,9.20797382]
[1748877629091,0.01228,2537.9,2537.4,5.267]
[1748877629286,0.01228,2537.9,2537.5,5.267]
[1748877631027,7.61269998,2537.9,2537.5,5.267]
[1748877631326,7.61269998,2537.9,2537.5,9.20781119]
[1748877631533,7.61269998,2537.9,2537.5,5.267]
[1748877632155,7.61269998,2537.9,2537.7,3.94053925]
[1748877632355,0.01228,2537.9,2537.6,3.94060759]
[1748877632499,0.01228,2537.9,2537.8,4.149]
[1748877633821,7.61269998,2537.9,2537.8,4.149]
[1748877634008,8.50099494,2537.9,2537.8,4.149]
[1748877634210,8.50099494,2537.9,2537.4,0.8295]
[1748877634475,8.50099494,2537.9,2537.6,8.0]
[1748877635159,0.0492549,2537.8,2537.5,5.266]
[1748877635315,0.98736988,2537.8,2537.5,5.266]
[1748877635520,0.98736988,2537.8,2537.1,0.827]
[1748877635721,7.60041998,2537.6,2537.0,3.94151139]
[1748877635923,7.60041998,2537.3,2537.1,1.118]
[1748877636220,7.60041998,2537.3,2537.2,8.0]
[1748877637033,0.7779,2537.5,2537.2,8.0]
[1748877637271,1.615732,2537.5,2537.2,8.0]
[1748877637466,1.615732,2537.5,2537.2,11.94120463]
[1748877637665,0.93811498,2537.8,2537.2,8.0]
[1748877637666,0.8302,2537.7,2537.2,8.0]
[1748877637870,0.8302,2537.7,2537.3,3.94119733]
[1748877638078,0.8302,2537.7,2537.4,4.148]
[1748877638367,0.8302,2537.7,2537.0,11.94159591]
[1748877638368,7.60041998,2537.5,2537.0,11.94159591]
[1748877638688,7.60041998,2537.5,2537.3,1.118]
[1748877638991,0.76496828,2537.4,2537.3,1.118]
[1748877641051,0.8302,2537.7,2537.3,5.05907675]
[1748877641278,0.87946109,2537.7,2537.3,1.118]
[1748877641662,7.60041998,2537.5,2537.3,1.118]
[1748877641853,7.64968398,2537.5,2537.3,1.118]
[1748877642240,7.60041998,2537.5,2537.3,1.118]
[1748877643354,0.7649684,2537.4,2537.3,1.118]
[1748877644157,7.60041998,2537.5,2537.3,1.118]
[1748877647382,0.7647,2537.3,2536.6,4.7069512]
[1748877647587,7.60041998,2536.9,2536.7,1.118]
[1748877647882,7.60041998,2536.9,2536.7,5.266]
[1748877648383,7.64969038,2537.2,2536.7,9.2081262]
[1748877648680,8.44185902,2537.2,2536.7,5.266]
[1748877648889,8.44185902,2537.2,2536.7,9.20803654]
[1748877649898,7.60041998,2536.9,2536.4,0.7695]
[1748877650090,7.60041998,2536.6,2536.5,1.117]
[1748877654766,7.60041998,2536.6,2535.9,4.71282066]
[1748877654767,7.60041998,2536.6,2536.0,3.94315085]
[1748877654969,7.60041998,2536.6,2536.1,9.20805079]
[1748877655776,7.60041998,2536.6,2536.1,5.06005079]
[1748877655975,7.60041998,2536.6,2536.1,9.20805079]
[1748877656207,7.60041998,2536.6,2536.2,3.94281176]
[1748877656402,7.60041998,2536.6,2536.1,9.20798406]
[1748877656902,0.8311,2536.8,2536.3,3.94267818]
[1748877657092,0.88037855,2536.8,2536.1,10.60007054]
[1748877657294,0.88037855,2536.8,2536.2,3.94281489]
[1748877657490,0.88037855,2536.8,2536.1,9.20798647]
[1748877658905,1.28385197,2536.8,2536.1,9.20798647]
[1748877659105,7.60041998,2536.6,2536.1,1.117]
[1748877659404,0.8249,2536.5,2536.1,5.265]
[1748877659627,0.8249,2536.5,2536.1,1.117]
[1748877659794,0.8249,2536.2,2536.1,1.117]
[1748877659987,0.87418984,2536.2,2536.1,1.117]
[1748877660188,1.67236098,2536.2,2536.1,1.117]
[1748877660591,0.7983,2536.6,2536.1,1.117]
[1748877660795,0.7983,2536.6,2536.2,3.94280576]
[1748877661125,8.8021934,2536.8,2536.4,3.94248615]
[1748877661488,8.39871998,2536.8,2536.4,3.9425958]
[1748877661686,8.39871998,2536.8,2536.4,3.94252446]
[1748877662347,8.39871998,2536.8,2536.3,8.86036315]
[1748877662498,8.39871998,2536.8,2536.4,3.94253131]
[1748877663386,8.39871998,2536.8,2536.3,4.9177]
[1748877663590,8.39871998,2536.8,2536.4,3.94250269]
[1748877664001,0.0492766,2536.7,2536.4,4.148]
[1748877664206,8.39871998,2536.8,2536.4,8.09053404]
[1748877664430,8.39871998,2536.8,2536.5,3.94237712]
[1748877664642,0.38672115,2536.9,2536.6,3.9422841]
[1748877664846,0.7643,2537.1,2536.7,3.94206632]
[1748877665160,0.7643,2537.1,2536.8,1.117]
[1748877665944,0.7643,2537.1,2536.8,5.05897124]
[1748877666239,0.88027137,2537.3,2536.8,5.05887493]
[1748877666462,0.84806914,2537.2,2536.8,5.05887493]
[1748877666618,0.88027137,2537.3,2536.8,5.05887493]
[1748877666939,0.88027137,2537.3,2536.8,1.117]
[1748877667313,1.26933239,2537.3,2536.8,1.117]
[1748877667948,1.26933239,2537.3,2536.8,5.05896127]
[1748877668438,0.88027137,2537.3,2536.8,5.05896127]
[1748877668633,1.72834051,2537.3,2536.8,5.05896127]
[1748877669559,0.831,2537.3,2536.9,3.94179929]
[1748877669761,0.831,2537.3,2536.8,1.117]
[1748877670254,7.60041998,2537.4,2536.9,3.94175397]
[1748877670559,8.04610654,2537.4,2536.9,3.94175397]
[1748877670791,8.04610654,2537.4,2536.8,1.117]
[1748877670956,9.74080437,2537.4,2536.8,1.117]
[1748877671162,13.63259591,2537.4,2536.8,1.117]
[1748877671327,2.09111751,2537.4,2536.8,1.117]
[1748877671515,0.04926979,2537.4,2537.3,3.94119733]
[1748877671851,3.74161393,2537.9,2537.5,3.94083869]
[1748877672082,3.74161393,2537.9,2537.5,5.05783869]
[1748877672281,3.72933393,2537.7,2537.5,1.117]
[1748877673071,0.01228,2537.9,2537.5,5.264]
[1748877673254,0.01228,2537.9,2537.6,0.779]
[1748877673451,0.7806,2537.8,2537.6,1.117]
[1748877673789,1.65800653,2537.8,2537.6,1.117]
[1748877673955,0.7806,2537.8,2537.6,1.117]
[1748877674751,7.60098697,2537.9,2537.6,1.117]
[1748877675091,7.65024488,2537.9,2537.6,1.117]
[1748877676889,7.65024488,2537.9,2537.3,0.779]
[1748877677184,7.58870697,2537.6,2537.3,1.117]
[1748877678686,8.04430269,2537.9,2537.3,5.05812842]
[1748877678855,8.04430269,2537.9,2537.4,3.94102796]
[1748877679286,8.04430269,2537.9,2537.3,1.117]
[1748877679490,9.73879897,2537.9,2537.3,1.117]
[1748877679702,9.68953581,2537.9,2537.3,1.117]
[1748877679867,0.04925881,2537.8,2537.3,1.117]
[1748877680261,7.58870697,2537.6,2537.1,0.796]
[1748877680499,7.58870697,2537.6,2537.2,5.262]
[1748877680660,8.35250355,2537.6,2537.2,1.116]
[1748877680858,0.82446432,2537.5,2537.2,1.116]
[1748877681288,7.58870697,2537.3,2537.2,1.116]
[1748877681600,7.63797603,2537.3,2537.2,1.116]
[1748877681898,7.58870697,2537.3,2537.2,1.116]
[1748877682602,0.7752,2537.5,2537.2,1.116]
[1748877683099,0.04926566,2537.6,2537.2,5.8655888]
[1748877683405,0.04926566,2537.6,2537.2,1.9243]
[1748877683577,0.04926566,2537.6,2537.2,6.0703]
[1748877683776,1.28713824,2537.6,2537.2,6.0703]
[1748877683973,1.28713824,2537.6,2536.6,11.94215804]
[1748877683974,8.35140697,2537.4,2537.1,1.116]
[1748877684186,7.58870697,2537.2,2537.1,1.116]
[1748877685492,0.7627,2537.4,2537.1,1.116]
[1748877686910,0.04926961,2537.3,2537.1,1.116]
[1748877687062,0.88947039,2537.3,2537.1,1.116]
[1748877687259,7.58870697,2537.2,2536.9,1.116]
[1748877687504,0.04927343,2537.1,2536.9,1.116]
[1748877688290,3.94224476,2536.7,2536.2,1.116]
[1748877688473,7.58870697,2536.4,2536.2,1.116]
[1748877688698,0.0492847,2536.3,2536.2,1.116]
[1748877689789,7.58870697,2536.4,2536.2,1.116]
[1748877689964,7.58870697,2536.4,2535.8,8.7827]
[1748877690161,0.04928619,2536.3,2535.9,5.262]
[1748877690679,0.81308551,2536.3,2535.9,1.116]
[1748877692465,7.58870697,2536.1,2535.9,1.116]
[1748877692671,0.04929303,2536.0,2535.7,9.628]
[1748877692918,0.04929303,2536.0,2535.7,8.512]
[1748877693210,7.97346335,2536.1,2535.7,8.512]
[1748877693503,1.29161634,2536.0,2535.7,8.512]
[1748877694008,0.04929707,2535.9,2535.7,8.512]
[1748877694163,7.58870697,2535.8,2535.7,8.512]
[1748877694369,8.40570697,2535.8,2535.6,1.116]
[1748877694682,0.04929803,2535.7,2535.6,1.116]
[1748877694884,0.89479853,2535.7,2535.1,0.02]
[1748877695198,7.58870697,2535.5,2535.1,0.02]
[1748877695378,0.04930385,2535.4,2535.1,0.02]
[1748877695811,0.7907,2535.3,2535.1,0.02]
[1748877696090,0.04930894,2535.2,2535.1,0.02]
[1748877697726,7.63801591,2535.2,2535.1,0.02]
[1748877697923,8.4808875,2535.2,2535.1,0.02]
[1748877698127,8.43157856,2535.2,2535.1,0.02]
[1748877698519,0.7907,2535.3,2535.1,0.02]
[1748877698716,0.8455005,2535.7,2535.1,0.02]
[1748877698918,0.751,2535.9,2535.1,0.8099]
[1748877699229,0.04929937,2535.8,2535.4,3.94404394]
[1748877699394,0.751,2535.9,2535.5,1.116]
[1748877699585,0.38475638,2536.1,2535.7,3.94358619]
[1748877699820,0.04929338,2536.1,2535.6,0.761]
[1748877700027,7.58870697,2535.7,2535.5,1.116]
[1748877700226,0.8731001,2535.6,2535.3,1.116]
[1748877700523,0.8238,2535.6,2535.3,9.116]
[1748877700731,7.58870697,2535.7,2535.3,9.116]
[1748877700932,8.47780769,2535.7,2535.3,1.116]
[1748877701230,0.3697212,2535.6,2535.3,5.06030624]
[1748877701406,0.04930076,2535.5,2535.2,1.116]
[1748877701606,0.0493025,2535.7,2535.2,5.06044324]
[1748877701926,0.0493025,2535.7,2535.2,1.116]
[1748877701927,0.44515119,2535.7,2535.2,1.116]
[1748877702090,8.39800697,2535.8,2535.2,5.06046163]
[1748877702291,0.8398007,2535.7,2535.2,5.06046163]
[1748877702594,0.88910318,2535.7,2535.2,1.116]
[1748877704029,7.58870697,2535.5,2535.2,1.116]
[1748877704204,0.8037,2535.3,2535.1,0.02]
[1748877704408,7.63801876,2535.2,2535.1,0.02]
[1748877704612,8.52155842,2535.2,2535.1,0.02]
[1748877704815,8.47224663,2535.2,2535.1,0.02]
[1748877705618,12.78649084,2535.2,2535.1,0.02]
[1748877705818,12.78653686,2535.2,2535.1,0.02]
[1748877706136,12.7865458,2535.2,2535.1,0.02]
[1748877706338,12.9667086,2535.2,2535.1,0.02]
[1748877706550,13.7918086,2535.2,2535.1,0.02]
[1748877707505,14.16163537,2535.2,2535.1,0.02]
[1748877707705,13.7918086,2535.2,2535.1,0.02]
[1748877708221,4.49468054,2535.1,2534.4,9.631]
[1748877708407,7.58870697,2534.6,2534.4,1.117]
[1748877708609,0.04932237,2534.5,2534.4,1.117]
[1748877708839,0.36975287,2534.5,2534.4,1.117]
[1748877709047,7.63802901,2534.6,2534.4,1.117]
[1748877710217,0.7683,2534.7,2534.4,1.117]
[1748877710418,0.04932195,2534.6,2534.4,1.117]
[1748877710726,0.7683,2534.7,2534.4,1.117]
[1748877711120,0.04932212,2534.6,2534.4,1.117]
[1748877711310,0.61502656,2534.7,2534.4,1.117]
[1748877711516,0.04932212,2534.8,2534.4,1.117]
[1748877712315,0.0493196,2534.9,2534.4,1.117]
[1748877712534,0.0493196,2534.9,2534.5,3.94554666]
[1748877713215,0.0493196,2534.9,2534.4,1.117]
[1748877713216,0.04931551,2535.0,2534.4,5.06263743]
[1748877713412,7.58870697,2534.5,2534.1,0.02]
[1748877714349,0.7968,2534.9,2534.1,0.02]
[1748877714543,0.04931786,2534.8,2534.1,11.96609315]
[1748877714738,3.99440915,2534.8,2534.1,0.02]
[1748877715048,11.58311612,2534.8,2534.1,0.02]
[1748877715257,1.23799161,2534.7,2534.1,0.02]
[1748877715434,8.34720697,2534.5,2534.1,0.02]
[1748877715625,8.35520697,2534.2,2534.1,0.02]
[1748877716045,0.7665,2534.2,2534.1,0.02]
[1748877716244,0.81583032,2534.2,2534.1,0.02]
[1748877716830,0.04933032,2534.2,2534.1,0.02]
[1748877717014,12.47996554,2534.2,2534.1,0.02]
[1748877717228,12.43063522,2534.2,2534.1,0.02]
[1748877717463,13.24653522,2534.2,2534.1,0.02]
[1748877718155,9.30051676,2534.2,2534.1,0.02]
[1748877719361,13.24653522,2534.2,2534.1,0.02]
[1748877719741,9.30051676,2534.2,2534.1,0.02]
[1748877720130,13.44851676,2534.2,2534.1,0.02]
[1748877720471,0.89590979,2534.2,2534.1,0.02]
[1748877720787,8.38750697,2534.8,2534.1,0.02]
[1748877720948,0.04932042,2534.7,2534.2,1.116]
[1748877721633,0.36926133,2534.6,2534.2,1.116]
[1748877721945,0.36927127,2534.5,2534.2,1.116]
[1748877722141,0.36927127,2534.4,2534.2,1.116]
[1748877722360,7.78493058,2534.8,2534.2,6.47239742]
[1748877722544,0.04931771,2534.7,2534.2,1.116]
[1748877722872,3.99455909,2534.7,2534.2,1.8802]
[1748877723199,0.04931771,2534.7,2534.2,1.8802]
[1748877724166,3.99465654,2534.7,2534.2,1.8802]
[1748877724567,0.04931771,2534.7,2534.2,1.8802]
[1748877724842,7.58870697,2534.5,2534.2,0.7642]
[1748877725073,7.63802744,2534.5,2534.3,1.116]
[1748877725283,8.41672744,2534.5,2534.3,1.116]
[1748877725484,12.31297195,2534.5,2534.3,1.116]
[1748877725640,0.36782368,2534.4,2534.3,1.116]
[1748877725978,5.21377723,2534.4,2534.3,1.116]
[1748877726184,1.26807016,2534.4,2534.3,1.116]
[1748877726890,1.31739599,2534.4,2534.3,1.116]
[1748877728059,1.26807016,2534.4,2534.3,1.116]
[1748877728385,7.58870697,2534.5,2534.3,1.116]
[1748877729178,0.04932551,2534.4,2534.3,1.116]
[1748877729377,0.04932551,2534.4,2534.1,0.02]
[1748877730379,4.72164527,2534.8,2534.1,0.02]
[1748877730380,7.58870697,2534.6,2534.1,0.02]
[1748877730575,0.80819384,2534.5,2534.1,0.02]
[1748877731680,4.75374587,2534.5,2534.1,0.02]
[1748877731883,0.80819384,2534.5,2534.1,0.02]
[1748877732554,7.58870697,2534.9,2534.3,3.94586276]
[1748877732763,7.58870697,2534.9,2534.3,4.148]
[1748877732956,7.58870697,2534.9,2534.5,3.945528]
[1748877733162,7.63802432,2534.9,2534.4,3.94564076]
[1748877733759,7.63802432,2534.9,2534.3,4.148]
[1748877733985,8.47890675,2534.9,2534.3,8.0937687]
[1748877734284,8.4295894,2534.9,2534.3,4.148]
[1748877734486,0.04931597,2534.8,2534.3,4.148]
[1748877734988,7.58870697,2534.6,2534.4,1.116]
[1748877735165,8.79634582,2534.6,2534.4,1.116]
[1748877735370,4.77133575,2534.5,2534.1,0.02]
[1748877735560,7.58870697,2534.2,2534.1,0.02]
[1748877736773,7.63803368,2534.2,2534.1,0.02]
[1748877736981,12.33905214,2534.2,2534.1,0.02]
[1748877737186,13.91822597,2534.2,2534.1,0.02]
[1748877737492,18.61622597,2534.2,2534.1,0.02]
[1748877738595,10.52220751,2534.2,2534.1,0.02]
[1748877738802,9.97220751,2534.2,2534.1,0.02]
[1748877740469,13.91822597,2534.2,2534.1,0.02]
[1748877740794,14.46822597,2534.2,2534.1,0.02]
[1748877741492,9.97220751,2534.2,2534.1,0.02]
[1748877741868,13.91822597,2534.2,2534.1,0.02]
[1748877742600,14.46822597,2534.2,2534.1,0.02]
[1748877746615,4.49627187,2534.1,2533.4,1.8663]
[1748877746768,7.58870697,2533.9,2533.4,1.8663]
[1748877748395,7.58870697,2533.9,2533.5,3.94710874]
[1748877748594,7.58870697,2533.9,2533.4,1.8663]
[1748877748781,7.58870697,2533.9,2533.5,0.22198553]
[1748877748971,7.98653804,2533.9,2533.4,1.8663]
[1748877749177,8.03587337,2533.9,2533.4,1.8663]
[1748877749874,9.23409789,2533.9,2533.4,1.8663]
[1748877750075,9.18476256,2533.9,2533.4,1.8663]
[1748877750479,9.18476256,2533.9,2533.4,5.81355183]
[1748877750680,7.98653804,2533.9,2533.5,3.94709624]
[1748877750873,0.39783107,2533.9,2533.6,3.94688373]
[1748877751105,0.0493336,2534.1,2533.4,5.81355467]
[1748877751299,0.0493336,2534.1,2533.5,3.94698031]
[1748877751716,0.0493336,2534.1,2533.5,3.94710874]
[1748877751916,8.34370697,2534.2,2533.6,3.94692241]
[1748877752073,8.34370697,2534.2,2533.5,4.94324242]
[1748877752074,7.98730372,2534.2,2533.7,8.92247858]
[1748877752474,7.98730372,2534.2,2533.8,0.2219667]
[1748877752716,0.39859675,2534.2,2533.7,4.9757]
[1748877753018,0.04933031,2534.3,2533.7,8.92239381]
[1748877753205,0.04933031,2534.3,2533.8,4.83874934]
[1748877754094,0.04933031,2534.3,2533.9,0.22195492]
[1748877754418,0.04933031,2534.3,2534.0,0.22195492]
[1748877754638,0.04933031,2534.3,2534.1,1.116]
[1748877754787,0.04932716,2534.4,2534.1,1.116]
[1748877754983,1.28324722,2534.4,2534.1,1.116]
[1748877755735,1.67600372,2534.4,2534.1,1.116]
[1748877757099,0.3927565,2534.4,2534.1,5.264]
[1748877757306,7.58870697,2534.8,2534.2,0.7523]
[1748877757503,3.73699185,2534.4,2534.2,0.7523]
[1748877757732,3.73699185,2534.4,2534.3,0.22193166]
[1748877757889,0.38572166,2534.4,2534.2,0.7523]
[1748877758088,3.73699185,2534.4,2534.3,0.22192142]
[1748877758290,3.73699185,2534.4,2534.2,4.69829958]
[1748877758530,3.73699185,2534.6,2534.3,3.94586276]
[1748877758694,3.73699185,2534.6,2534.2,2.14315598]
[1748877758889,3.73699185,2534.6,2534.3,3.94578592]
[1748877759089,3.73699185,2534.6,2534.2,4.69820527]
[1748877759293,7.60955164,2534.8,2534.2,4.69820527]
[1748877759495,0.04931831,2534.7,2534.2,4.69820527]
[1748877759796,0.04931831,2534.7,2534.2,0.7523]
[1748877760128,0.04931831,2534.7,2534.2,4.69829713]
[1748877760303,0.44754751,2534.7,2534.2,4.69829713]
[1748877760725,0.44754751,2534.7,2534.3,0.22191752]
[1748877760726,1.32849743,2534.7,2534.3,0.22191752]
[1748877760957,7.60955164,2534.5,2534.3,1.33691752]
[1748877761106,0.04932463,2534.4,2534.3,0.22191752]
[1748877761909,8.36075164,2534.5,2534.3,0.22191752]
[1748877762432,7.60955164,2534.5,2534.3,0.22191752]
[1748877762735,0.04932416,2534.6,2534.3,0.22191752]
[1748877765532,4.88071301,2534.6,2534.3,0.22191752]
[1748877765738,7.60955164,2534.4,2534.3,0.22191752]
[1748877765955,7.65887584,2534.4,2534.3,0.22191752]
[1748877766299,11.60458291,2534.4,2534.3,0.22191752]
[1748877766505,7.60955164,2534.4,2534.3,0.22191752]
[1748877766733,8.85365097,2534.4,2534.3,0.22191752]
[1748877768329,1.24409933,2534.4,2534.3,0.22191752]
[1748877768513,0.04932663,2534.6,2534.3,0.22191752]
[1748877768852,3.99479225,2534.6,2534.3,0.22191752]
[1748877769057,0.04932663,2534.6,2534.3,0.22191752]
[1748877769409,8.00778084,2534.7,2534.3,0.22191752]
[1748877769718,0.3982292,2534.7,2534.3,0.22191752]
[1748877769919,0.0493194,2534.9,2534.4,4.70481498]
[1748877770120,0.04931551,2535.1,2534.4,8.85081498]
[1748877770523,0.7522,2535.2,2534.4,4.9052]
[1748877770724,0.39313406,2535.2,2534.7,3.94514497]
[1748877770921,8.36175164,2535.4,2534.8,1.114]
[1748877771150,0.83617516,2535.3,2534.9,0.7839]
[1748877771471,7.60955164,2535.6,2534.9,0.7839]
[1748877771629,7.60955164,2535.6,2535.0,3.94476873]
[1748877771815,0.04930326,2535.5,2534.9,0.7839]
[1748877772220,8.0528176,2535.6,2534.9,0.7839]
[1748877772424,8.0528176,2535.6,2534.9,4.72875985]
[1748877772763,9.30381812,2535.6,2535.0,3.94476663]
[1748877772977,9.30381812,2535.6,2534.9,0.7839]
[1748877773158,9.30381812,2535.6,2535.0,3.94475481]
[1748877773851,9.30381812,2535.6,2534.9,4.7288003]
[1748877774726,9.30381812,2535.6,2535.0,3.94474786]
[1748877774920,0.04930329,2535.5,2535.1,4.145]
[1748877775423,8.00351434,2535.6,2535.2,3.94435533]
[1748877775624,8.00351434,2535.6,2535.1,8.97686114]
[1748877775831,8.00351434,2535.6,2535.2,3.94444644]
[1748877776143,8.00351434,2535.6,2535.1,8.97687556]
[1748877776464,8.00351434,2535.6,2535.3,3.94430639]
[1748877776668,7.62955164,2535.9,2535.5,3.94388318]
[1748877776853,7.67884854,2535.9,2535.6,1.114]
[1748877777260,7.62955164,2535.9,2535.6,1.114]
[1748877777468,7.62955164,2535.9,2535.6,5.05771873]
[1748877777670,7.62955164,2535.9,2535.6,5.05782057]
[1748877777992,7.62955164,2535.9,2535.6,5.05782026]
[1748877778637,8.0290658,2535.9,2535.6,5.05782026]
[1748877779090,0.41951416,2535.9,2535.7,3.94366715]
[1748877779300,0.41951416,2535.9,2535.6,1.114]
[1748877779301,0.41951416,2535.9,2535.6,5.05775322]
[1748877779593,0.41951416,2535.9,2535.7,3.94361282]
[1748877779801,0.02,2535.9,2535.8,3.94352866]
[1748877779967,0.02,2535.9,2535.7,3.94360709]
[1748877780300,0.02,2535.9,2535.8,3.94352866]
[1748877780604,0.02,2535.9,2535.8,4.9272]
[1748877785145,0.02,2535.9,2535.8,8.87072866]
[1748877785344,0.02,2535.9,2535.8,0.7832]
[1748877785543,0.02,2535.9,2535.8,17.98372866]
[1748877785867,0.02,2535.9,2535.8,21.06848306]
[1748877788785,0.02,2535.9,2535.8,15.81148306]
[1748877789263,0.02,2535.9,2535.8,13.83972866]
[1748877789652,0.02,2535.9,2535.8,1.8962]
[1748877789850,0.02,2535.9,2535.8,1.113]
[1748877790106,0.02,2535.9,2535.7,4.142]
[1748877790107,7.62955164,2535.9,2535.7,1.113]
[1748877791386,0.02,2535.9,2535.7,1.113]
[1748877792558,0.02,2535.9,2535.8,4.141]
[1748877794097,0.02,2535.9,2535.8,9.00431143]
[1748877794514,0.02,2535.9,2535.8,5.06078277]
[1748877795183,0.02,2535.9,2535.8,0.91978277]
[1748877795373,0.02,2535.9,2535.8,4.141]
[1748877796166,0.02,2535.9,2535.6,3.94382414]
[1748877796367,0.02,2535.9,2535.8,5.254]
[1748877797767,0.02,2535.9,2535.5,8.0]
[1748877797961,0.02,2535.9,2535.4,0.757]
[1748877798161,7.60955164,2535.8,2535.5,5.254]
[1748877798894,0.02,2535.9,2535.6,3.94379348]
[1748877799102,0.02,2535.9,2535.5,9.19791378]
[1748877799275,0.02,2535.9,2535.5,9.19799346]
[1748877799471,0.02,2535.9,2535.5,10.91779281]
[1748877799676,0.06929182,2535.9,2535.5,5.254]
[1748877800290,0.02,2535.9,2535.5,5.254]
[1748877800486,0.02,2535.9,2535.6,3.94376243]
[1748877801185,0.02,2535.9,2535.5,9.1979634]
[1748877801602,0.02,2535.9,2535.5,9.19789366]
[1748877801771,0.02,2535.9,2535.6,1.31420348]
[1748877802781,0.02,2535.9,2535.7,1.112]
[1748877803707,0.7505,2535.8,2535.3,3.94421787]
[1748877803900,0.7505,2535.8,2535.5,4.14]
[1748877804087,0.7505,2535.8,2535.6,1.112]
[1748877805075,0.7505,2535.8,2535.4,3.944144]
[1748877805276,0.7505,2535.8,2535.5,5.252]
[1748877806904,0.7505,2535.8,2535.5,9.19596591]
[1748877807311,0.7505,2535.8,2535.5,5.252]
[1748877808679,0.02,2535.9,2535.5,5.252]
[1748877809407,3.73328245,2535.7,2535.5,5.252]
[1748877812235,3.73328245,2535.8,2535.5,5.252]
[1748877812430,0.02,2535.9,2535.8,3.94352866]